bitfinex-derivatives/quotes_BTCF0:USTF0_20250810
["timestamp","ask_amount","ask_price","bid_price","bid_amount"]
[1754868714945,0.03607,119200.0,119190.0,1.74257829]
[1754868715449,0.03607,119200.0,119190.0,1.74457829]
[1754868718943,0.03607,119200.0,119190.0,1.81962705]
[1754868720555,0.03607,119200.0,119190.0,1.09126086]
[1754868720752,0.17734,119200.0,119190.0,2.08234705]
[1754868721652,0.17734,119200.0,119190.0,1.85367086]
[1754868721954,0.17734,119200.0,119190.0,2.00202829]
[1754868722255,0.17734,119200.0,119190.0,2.00729829]
[1754868722456,0.17734,119200.0,119190.0,3.16737829]
[1754868724552,0.17734,119200.0,119190.0,3.24242705]
[1754868724752,0.17734,119200.0,119190.0,3.16737829]
[1754868725457,0.17734,119200.0,119190.0,3.24242705]
[1754868725862,0.10877,119200.0,119190.0,3.24242705]
[1754868726060,0.03607,119200.0,119190.0,3.24242705]
[1754868726562,0.03607,119200.0,119190.0,2.97962705]
[1754868727363,0.03607,119200.0,119190.0,2.90457829]
[1754868731463,0.03607,119200.0,119190.0,2.6811721]
[1754868731767,0.03607,119200.0,119190.0,2.90457829]
[1754868732262,0.03607,119200.0,119190.0,2.97962705]
[1754868733753,0.0001,119200.0,119190.0,2.97962705]
[1754868736066,0.03997,119200.0,119190.0,2.97962705]
[1754868737462,0.03997,119200.0,119190.0,2.98054705]
[1754868737661,0.03997,119200.0,119190.0,2.90549829]
[1754868738365,0.03997,119200.0,119190.0,3.16829829]
[1754868738966,0.03997,119200.0,119190.0,3.27366402]
[1754868739268,0.03997,119200.0,119190.0,3.16829829]
[1754868739468,0.0001,119200.0,119190.0,3.16829829]
[1754868739774,0.0001,119200.0,119190.0,3.24354876]
[1754868740268,0.03997,119200.0,119190.0,3.24354876]
[1754868740471,0.03997,119200.0,119190.0,3.16829829]
[1754868741170,0.03997,119200.0,119190.0,3.2435427]
[1754868741469,0.03997,119200.0,119190.0,3.16829829]
[1754868742073,0.03997,119200.0,119190.0,3.27364895]
[1754868743363,0.03997,119200.0,119190.0,3.16829829]
[1754868747377,0.03997,119200.0,119190.0,3.27362135]
[1754868748175,0.03997,119200.0,119190.0,3.05021516]
[1754868748375,0.03997,119200.0,119190.0,3.27362135]
[1754868749581,0.03997,119200.0,119190.0,1.34494135]
[1754868749783,0.03997,119200.0,119190.0,3.27326135]
[1754868752580,0.03997,119200.0,119190.0,3.27362135]
[1754868753186,0.0001,119200.0,119190.0,3.27314135]
[1754868753375,0.0001,119200.0,119190.0,3.34836919]
[1754868753576,0.03997,119200.0,119190.0,3.24304613]
[1754868757390,0.03997,119200.0,119190.0,3.16781829]
[1754868757591,0.0001,119200.0,119190.0,3.39122448]
[1754868757790,0.03933,119220.0,119210.0,0.0838667]
[1754868758097,0.03933,119220.0,119210.0,2.17279766]
[1754868758388,0.03933,119220.0,119210.0,1.94939147]
[1754868758582,0.1676962,119240.0,119220.0,0.2515662]
[1754868758789,0.03933,119230.0,119220.0,0.68755542]
[1754868758993,0.03933,119230.0,119220.0,1.45581542]
[1754868759492,0.03933,119230.0,119220.0,1.67922161]
[1754868759893,0.07669,119230.0,119220.0,1.69058816]
[1754868760095,0.17791,119230.0,119220.0,1.69058816]
[1754868760495,0.17891,119230.0,119220.0,1.69058816]
[1754868760698,0.2627626,119230.0,119220.0,1.69058816]
[1754868761190,0.001,119230.0,119220.0,1.69058816]
[1754868761386,0.04033,119230.0,119220.0,1.61539894]
[1754868761587,0.17891,119230.0,119220.0,1.72069606]
[1754868761793,0.17891,119230.0,119220.0,1.49728987]
[1754868761995,0.17891,119230.0,119220.0,1.72069606]
[1754868762191,0.087,119230.0,119220.0,1.72069606]
[1754868762489,0.04033,119230.0,119220.0,1.72069606]
[1754868763699,0.04033,119230.0,119220.0,1.71269606]
[1754868765891,0.04033,119230.0,119220.0,1.60739894]
[1754868766196,0.04033,119230.0,119220.0,1.68248454]
[1754868766386,0.001,119230.0,119220.0,1.68248454]
[1754868766588,0.04033,119230.0,119220.0,1.68248454]
[1754868767798,0.04033,119230.0,119220.0,1.60739894]
[1754868768500,0.001,119230.0,119220.0,1.68242962]
[1754868768800,0.04033,119230.0,119220.0,1.68242962]
[1754868770193,0.001,119230.0,119220.0,1.68242962]
[1754868770504,0.001,119230.0,119220.0,1.60739894]
[1754868771496,0.001,119230.0,119220.0,1.60939894]
[1754868771901,0.001,119230.0,119220.0,1.87219894]
[1754868772099,0.001,119230.0,119220.0,1.97749606]
[1754868772300,0.0001,119240.0,119230.0,0.0838526]
[1754868772501,0.0001,119240.0,119230.0,0.75209324]
[1754868772802,0.0001,119240.0,119230.0,0.85739036]
[1754868773003,0.03943,119240.0,119230.0,0.85739036]
[1754868773701,0.03943,119240.0,119230.0,0.85939036]
[1754868774098,0.17801,119240.0,119230.0,0.85939036]
[1754868774303,0.17801,119240.0,119230.0,1.62891036]
[1754868774499,0.0001,119240.0,119230.0,1.52361324]
[1754868775202,0.0001,119240.0,119230.0,1.52561324]
[1754868775700,0.0001,119240.0,119230.0,1.78841324]
[1754868775899,0.0001,119240.0,119230.0,1.09384368]
[1754868776101,0.0001,119240.0,119230.0,1.86316368]
[1754868776400,0.03943,119240.0,119230.0,1.86316368]
[1754868776804,0.03943,119240.0,119230.0,1.09384368]
[1754868777001,0.03943,119240.0,119230.0,1.86312368]
[1754868779308,0.0001,119240.0,119230.0,1.86312368]
[1754868780006,0.03943,119240.0,119230.0,1.86312368]
[1754868782214,0.0001,119240.0,119230.0,2.25426587]
[1754868783015,0.0001,119240.0,119230.0,2.17931543]
[1754868783218,0.0001,119240.0,119230.0,1.18662924]
[1754868783419,0.0001,119240.0,119230.0,1.95562924]
[1754868784010,0.0001,119240.0,119230.0,2.06092636]
[1754868784217,0.0001,119240.0,119230.0,1.29192636]
[1754868784404,0.0001,119240.0,119230.0,2.06084636]
[1754868784609,0.0001,119240.0,119230.0,2.06184636]
[1754868785512,0.0001,119240.0,119230.0,2.06227636]
[1754868785715,0.03865,119260.0,119250.0,0.0843686]
[1754868786013,0.03865,119260.0,119250.0,2.8308573]
[1754868786516,0.12587,119260.0,119250.0,2.8308573]
[1754868786705,0.15941,119260.0,119250.0,2.8308573]
[1754868786906,0.15951,119260.0,119250.0,2.8309573]
[1754868787416,0.18574,119260.0,119250.0,2.8309573]
[1754868788218,0.18574,119260.0,119250.0,2.8319573]
[1754868789214,0.0001,119260.0,119250.0,2.8317973]
[1754868789418,0.0001,119260.0,119250.0,2.8319573]
[1754868789711,0.03875,119260.0,119250.0,2.8319573]
[1754868792220,0.0001,119260.0,119250.0,2.8319573]
[1754868792620,0.03875,119260.0,119250.0,2.8319573]
[1754868793318,0.3263514,119280.0,119270.0,0.1956845]
[1754868793620,0.1586975,119280.0,119270.0,1.94263069]
[1754868793807,0.07488,119280.0,119270.0,1.98144069]
[1754868794214,0.07488,119280.0,119270.0,1.7580345]
[1754868794418,0.07498,119280.0,119270.0,1.98154069]
[1754868795118,0.07898,119280.0,119270.0,1.98154069]
[1754868795322,0.18974,119280.0,119270.0,1.99325426]
[1754868795713,0.2735575,119280.0,119270.0,1.99325426]
[1754868796222,0.2735575,119280.0,119270.0,1.76984807]
[1754868796421,0.2735575,119280.0,119270.0,1.99325426]
[1754868797117,0.2735575,119280.0,119270.0,1.76984807]
[1754868799228,0.2735575,119280.0,119270.0,1.98525426]
[1754868799519,0.2514373,119290.0,119270.0,2.23662276]
[1754868799724,0.1586975,119280.0,119270.0,1.68300826]
[1754868799927,0.1586975,119280.0,119270.0,2.04380826]
[1754868800225,0.1586975,119280.0,119270.0,2.15359826]
[1754868800427,0.07488,119280.0,119270.0,2.15359826]
[1754868800726,0.1586975,119280.0,119270.0,2.15359826]
[1754868800928,0.07498,119280.0,119270.0,2.15369826]
[1754868801626,0.11355,119280.0,119270.0,2.15369826]
[1754868802121,0.0925744,119290.0,119280.0,0.242846]
[1754868802316,0.0925744,119290.0,119280.0,0.713436]
[1754868802512,0.1763888,119290.0,119280.0,1.02065969]
[1754868802720,0.00876,119290.0,119280.0,1.02065969]
[1754868803116,0.0925634,119300.0,119290.0,0.4364367]
[1754868803322,0.0926634,119300.0,119290.0,1.78888289]
[1754868804218,0.00886,119300.0,119290.0,1.78888289]
[1754868804424,0.0838028,119310.0,119300.0,0.2428171]
[1754868804619,0.27132751,119310.0,119300.0,0.7134071]
[1754868804820,0.5514428,119310.0,119300.0,0.7134071]
[1754868805421,0.57132821,119310.0,119300.0,0.7134071]
[1754868805626,0.65513101,119310.0,119300.0,0.7973108]
[1754868806330,0.7190484,119310.0,119300.0,0.7903108]
[1754868806629,0.8028521,119310.0,119300.0,0.7903108]
[1754868806824,0.2514437,119310.0,119300.0,0.8740145]
[1754868807924,0.0838037,119310.0,119300.0,1.09742069]
[1754868808125,0.0838037,119310.0,119300.0,1.09752069]
[1754868808319,0.0838037,119310.0,119300.0,0.8741145]
[1754868808515,0.0838037,119310.0,119300.0,1.09752069]
[1754868810326,0.4188433,119350.0,119300.0,1.02117069]
[1754868810521,0.52249338,119350.0,119340.0,0.3608]
[1754868810726,0.52249338,119350.0,119330.0,0.3608]
[1754868810727,0.0837756,119340.0,119330.0,0.76768]
[1754868811026,0.68786327,119340.0,119330.0,0.76768]
[1754868811226,0.98786327,119340.0,119330.0,0.76768]
[1754868812429,0.0837827,119330.0,119320.0,0.3608]
[1754868812620,0.93923647,119330.0,119320.0,0.76774]
[1754868812823,0.93923647,119330.0,119320.0,0.80735]
[1754868814129,0.94223647,119330.0,119320.0,0.80735]
[1754868814330,0.0837887,119330.0,119320.0,1.6047367]
[1754868814542,0.3837887,119330.0,119320.0,1.7723141]
[1754868814935,0.3837887,119330.0,119320.0,1.8089541]
[1754868815334,0.3837887,119330.0,119320.0,1.8424941]
[1754868815529,0.5960387,119330.0,119320.0,1.8425941]
[1754868817035,0.5960387,119330.0,119320.0,1.8090541]
[1754868817239,0.5960387,119330.0,119320.0,1.8717141]
[1754868817739,0.81944489,119330.0,119320.0,1.7879244]
[1754868819836,0.81511489,119330.0,119320.0,1.6886244]
[1754868820036,0.81511489,119330.0,119320.0,1.8246744]
[1754868821140,0.5917087,119330.0,119320.0,1.8246744]
[1754868821336,0.2917087,119330.0,119320.0,1.8166744]
[1754868821531,0.2917087,119330.0,119320.0,2.04008059]
[1754868821933,0.47077653,119340.0,119330.0,0.29558]
[1754868822139,0.47067653,119340.0,119330.0,0.96366889]
[1754868822542,0.47067653,119340.0,119330.0,0.7402627]
[1754868822841,0.46374653,119340.0,119330.0,0.96366889]
[1754868823047,0.47067653,119340.0,119330.0,0.96366889]
[1754868824251,0.47367653,119340.0,119330.0,0.7402627]
[1754868824651,0.25532583,119340.0,119330.0,0.96366889]
[1754868824950,0.30611583,119340.0,119330.0,0.96366889]
[1754868825149,0.29918583,119340.0,119330.0,0.96366889]
[1754868825352,0.30611583,119340.0,119330.0,0.7402627]
[1754868825553,0.30511583,119340.0,119330.0,0.7402627]
[1754868826440,0.30511583,119340.0,119330.0,2.01927728]
[1754868826441,0.002,119340.0,119330.0,2.01927728]
[1754868828346,0.002,119340.0,119330.0,2.01127728]
[1754868830647,0.002,119340.0,119330.0,1.48283728]
[1754868830858,0.002,119340.0,119330.0,2.01127728]
[1754868831961,0.0001,119350.0,119340.0,0.29558]
[1754868832164,0.4739796,119360.0,119350.0,0.29558]
[1754868832355,0.3901122,119360.0,119350.0,0.96365749]
[1754868832557,0.3901122,119360.0,119350.0,0.7402513]
[1754868832959,0.3399422,119360.0,119350.0,0.7402513]
[1754868833153,0.22258,119360.0,119350.0,0.7402513]
[1754868833356,0.3063443,119360.0,119350.0,0.7402513]
[1754868833553,0.57853997,119370.0,119360.0,0.3793443]
[1754868833850,0.5977983,119370.0,119360.0,1.5137643]
[1754868834360,0.5977983,119370.0,119360.0,1.58017862]
[1754868834958,0.82120449,119370.0,119360.0,0.72289432]
[1754868835161,0.82120449,119370.0,119360.0,1.58005862]
[1754868835348,0.5977983,119370.0,119360.0,1.58005862]
[1754868835551,0.6201283,119370.0,119360.0,1.57205862]
[1754868836649,0.6231283,119370.0,119360.0,1.57205862]
[1754868838455,0.6007983,119370.0,119360.0,1.57205862]
[1754868838652,0.6231283,119370.0,119360.0,1.57205862]
[1754868839052,0.84653449,119370.0,119360.0,1.57205862]
[1754868839554,0.02381027,119370.0,119360.0,2.33986359]
[1754868839750,0.003,119370.0,119360.0,2.86830359]
[1754868840757,0.003,119370.0,119360.0,2.09490359]
[1754868840963,0.2514394,119380.0,119370.0,0.3793373]
[1754868841150,8e-05,119380.0,119370.0,0.96740579]
[1754868841355,8e-05,119380.0,119370.0,1.71925198]
[1754868841852,0.0838302,119380.0,119370.0,1.71925198]
[1754868842555,0.0838302,119380.0,119370.0,1.71125198]
[1754868842959,0.0838302,119380.0,119370.0,2.78401188]
[1754868843156,0.0838302,119380.0,119370.0,1.4423373]
[1754868843357,0.0838302,119380.0,119370.0,2.56068569]
[1754868843563,0.0858302,119380.0,119370.0,2.56068569]
[1754868843958,0.0858302,119380.0,119370.0,2.78409188]
[1754868844772,0.0858302,119380.0,119370.0,2.56068569]
[1754868844961,0.0858302,119380.0,119370.0,2.78409188]
[1754868845765,0.2068102,119380.0,119370.0,1.5606772]
[1754868845963,0.55704271,119380.0,119370.0,1.3689873]
[1754868846163,0.58737271,119380.0,119370.0,1.5019773]
[1754868846566,0.55704271,119380.0,119370.0,1.5019772]
[1754868846865,0.33363652,119380.0,119370.0,1.5019772]
[1754868847262,0.22613652,119380.0,119370.0,1.8019771]
[1754868847464,0.33363652,119380.0,119370.0,1.8019771]
[1754868848761,0.2555902,119380.0,119370.0,1.8019771]
[1754868849067,0.0858302,119380.0,119370.0,2.25255178]
[1754868849567,0.00208,119380.0,119370.0,2.47299188]
[1754868850363,0.0858302,119380.0,119370.0,2.47299188]
[1754868850554,0.10515756,119380.0,119370.0,2.47299188]
[1754868850761,0.10515748,119380.0,119370.0,2.47299188]
[1754868851065,0.0858302,119380.0,119370.0,2.47299188]
[1754868851267,0.02141064,119380.0,119370.0,2.47299188]
[1754868851562,0.16764213,119390.0,119380.0,0.17902]
[1754868851765,0.16754213,119390.0,119380.0,1.12024478]
[1754868852770,0.17054213,119390.0,119380.0,1.12024478]
[1754868852957,0.08679493,119390.0,119380.0,1.12024478]
[1754868853562,0.08679493,119390.0,119380.0,1.94868468]
[1754868854871,0.08679493,119390.0,119380.0,1.72527849]
[1754868855867,0.08679493,119390.0,119380.0,2.08607849]
[1754868856064,0.00305103,119390.0,119380.0,2.30948468]
[1754868856271,5.103e-05,119390.0,119380.0,2.30948468]
[1754868856474,0.08379413,119390.0,119380.0,2.30948468]
[1754868856771,0.08379413,119390.0,119380.0,2.30148468]
[1754868858474,5.103e-05,119390.0,119380.0,2.30148468]
[1754868858775,5.103e-05,119390.0,119380.0,2.37398468]
[1754868859268,0.4279891,119400.0,119380.0,2.13991189]
[1754868859269,0.0838382,119400.0,119380.0,2.13991189]
[1754868859474,0.0838382,119400.0,119390.0,1.37543217]
[1754868859475,0.3479998,119400.0,119390.0,1.37543217]
[1754868859674,0.3990485,119400.0,119390.0,1.60270066]
[1754868859875,0.4428785,119400.0,119390.0,1.37553217]
[1754868860178,0.4818485,119400.0,119390.0,1.37553217]
[1754868860379,0.4818485,119400.0,119390.0,1.60270066]
[1754868861079,0.3981083,119400.0,119390.0,1.60270066]
[1754868861472,0.25751934,119410.0,119390.0,2.81412175]
[1754868861770,0.56754194,119410.0,119400.0,0.3851222]
[1754868861974,0.56744194,119410.0,119400.0,1.14083069]
[1754868862772,0.23914664,119410.0,119400.0,1.44083059]
[1754868863073,0.30962664,119410.0,119400.0,1.44083059]
[1754868863274,0.48470664,119410.0,119400.0,1.44083059]
[1754868863783,0.48470664,119410.0,119400.0,1.43283059]
[1754868863969,0.24014664,119410.0,119400.0,1.43283059]
[1754868864282,0.24014664,119410.0,119400.0,1.65623678]
[1754868864680,0.35416664,119410.0,119400.0,1.43283059]
[1754868864985,0.48470664,119410.0,119400.0,1.43283059]
[1754868865479,0.24014664,119410.0,119400.0,1.43283059]
[1754868865670,0.24014664,119410.0,119400.0,1.65623678]
[1754868865871,0.11028204,119410.0,119400.0,1.95750829]
[1754868866078,0.00721964,119410.0,119400.0,1.65623678]
[1754868867079,0.09094874,119410.0,119400.0,1.65623678]
[1754868867277,0.08994874,119410.0,119400.0,2.42919678]
[1754868867482,0.05234964,119410.0,119400.0,2.42919678]
[1754868867880,0.00621964,119410.0,119400.0,1.90075678]
[1754868868078,0.00621964,119410.0,119400.0,2.42919678]
[1754868868585,0.05234964,119410.0,119400.0,2.42919678]
[1754868869776,0.13607874,119410.0,119400.0,2.42919678]
[1754868870182,0.05234964,119410.0,119400.0,2.42919678]
[1754868870874,0.05234964,119410.0,119400.0,2.42119678]
[1754868873588,0.13607874,119410.0,119400.0,2.42119678]
[1754868873989,0.20655874,119410.0,119400.0,2.19655059]
[1754868874191,0.20655874,119410.0,119400.0,2.41995678]
[1754868874391,0.13607874,119410.0,119400.0,2.41995678]
[1754868875487,0.00621964,119410.0,119400.0,2.42420678]
[1754868875691,0.08994874,119410.0,119400.0,2.42420678]
[1754868875886,0.13973874,119410.0,119400.0,2.42420678]
[1754868876686,0.33196874,119410.0,119400.0,1.42908059]
[1754868876885,0.38919874,119410.0,119400.0,2.42412678]
[1754868877593,0.33196874,119410.0,119400.0,2.42412678]
[1754868877794,0.38919874,119410.0,119400.0,1.42908059]
[1754868877985,0.38919874,119410.0,119400.0,2.41596678]
[1754868878790,0.08994874,119410.0,119400.0,2.41596678]
[1754868878994,0.00621964,119410.0,119400.0,2.41596678]
[1754868879495,0.13973874,119410.0,119400.0,2.41596678]
[1754868879692,0.05600964,119410.0,119400.0,2.41596678]
[1754868883498,0.05600964,119410.0,119400.0,2.42296678]
[1754868883798,0.05600964,119410.0,119400.0,2.42396678]
[1754868884994,0.05600964,119410.0,119400.0,2.41596678]
[1754868885195,0.05600964,119410.0,119400.0,2.42196678]
[1754868885395,0.13973874,119410.0,119400.0,2.42196678]
[1754868885595,0.26071874,119410.0,119400.0,2.42196678]
[1754868885895,0.26071874,119410.0,119400.0,2.42104678]
[1754868887798,0.33196874,119410.0,119400.0,2.42104678]
[1754868887998,0.38919874,119410.0,119400.0,2.42104678]
[1754868888299,0.38919874,119410.0,119400.0,1.65048678]
[1754868888503,0.38919874,119410.0,119400.0,0.3672222]
[1754868888797,0.93187945,119410.0,119400.0,0.2834861]
[1754868889102,0.93187945,119410.0,119400.0,1.0036861]
[1754868891089,0.204717,119400.0,119390.0,0.33973897]
[1754868891293,0.083751,119380.0,119370.0,0.4445566]
[1754868891492,0.383001,119380.0,119370.0,1.2819066]
[1754868891804,0.383001,119380.0,119370.0,1.3424066]
[1754868892003,0.60640719,119380.0,119370.0,0.77048]
[1754868892299,0.383001,119380.0,119370.0,0.77048]
[1754868892500,0.383001,119380.0,119370.0,0.77058]
[1754868892798,0.62566858,119380.0,119370.0,0.0021]
[1754868892998,0.62566858,119380.0,119370.0,0.7727]
[1754868893198,0.62566858,119380.0,119370.0,0.77258]
[1754868893697,0.92566858,119380.0,119370.0,0.0021]
[1754868893897,1.28646858,119380.0,119370.0,1e-08]
[1754868894400,0.204745,119360.0,119350.0,0.77068]
[1754868894595,0.383015,119360.0,119350.0,1.282122]
[1754868894801,0.383015,119360.0,119350.0,0.83755]
[1754868895004,0.60642119,119360.0,119350.0,0.77068]
[1754868895203,0.64332335,119360.0,119350.0,0.77078]
[1754868895795,0.64332335,119360.0,119350.0,0.77278]
[1754868895992,0.64332335,119360.0,119350.0,0.77678]
[1754868896398,0.94332335,119360.0,119350.0,0.0061]
[1754868896706,0.96253038,119360.0,119350.0,0.0061]
[1754868897106,0.73912419,119360.0,119350.0,0.0061]
[1754868897302,0.94332335,119360.0,119350.0,0.0061]
[1754868897507,1.32331749,119360.0,119350.0,0.0061]
[1754868897803,0.002,119360.0,119350.0,1.26511809]
[1754868897999,0.002,119360.0,119350.0,1.49228658]
[1754868898200,0.002,119360.0,119350.0,2.02072658]
[1754868898510,0.28902387,119370.0,119350.0,2.02072658]
[1754868898511,0.0001,119370.0,119350.0,2.18826618]
[1754868898802,0.0001,119370.0,119360.0,1.73681349]
[1754868899007,0.3011571,119380.0,119370.0,0.202748]
[1754868899306,0.3010571,119380.0,119370.0,0.731018]
[1754868899900,0.3723071,119380.0,119370.0,0.731018]
[1754868900402,0.5505171,119380.0,119370.0,0.731018]
[1754868900806,0.28844972,119390.0,119370.0,1.95037569]
[1754868901006,0.1336361,119390.0,119380.0,1.73695949]
[1754868901200,0.1335361,119390.0,119380.0,1.73705949]
[1754868901512,0.17079817,119390.0,119380.0,1.73705949]
[1754868901811,0.42025817,119390.0,119380.0,1.73705949]
[1754868902500,0.64366436,119390.0,119380.0,0.47989]
[1754868902697,0.64366436,119390.0,119380.0,0.77098]
[1754868902900,0.42025817,119390.0,119380.0,0.9821012]
[1754868903096,0.64366436,119390.0,119380.0,1.5098912]
[1754868904111,0.64366436,119390.0,119380.0,1.4618912]
[1754868904310,0.64366436,119390.0,119380.0,1.5098912]
[1754868904513,0.64366436,119390.0,119380.0,1.42614]
[1754868904914,0.64366436,119390.0,119380.0,1.01734]
[1754868905107,0.64366436,119390.0,119380.0,1.1010912]
[1754868905308,0.64366436,119390.0,119380.0,1.4618912]
[1754868906109,0.64366436,119390.0,119380.0,1.4990912]
[1754868907003,0.64366436,119390.0,119380.0,1.1382912]
[1754868907403,0.1543382,119370.0,119360.0,0.8018724]
[1754868907601,0.60211439,119370.0,119360.0,2.5088523]
[1754868907806,0.54315439,119370.0,119360.0,2.73602079]
[1754868908005,0.47327439,119370.0,119360.0,2.73602079]
[1754868908514,0.42466439,119370.0,119360.0,2.73602079]
[1754868908718,0.42466439,119370.0,119360.0,2.73902079]
[1754868908917,0.42466439,119370.0,119360.0,2.57249359]
[1754868909118,0.42466439,119370.0,119360.0,1.1932399]
[1754868909119,0.47327439,119370.0,119360.0,1.1932399]
[1754868909423,0.60211439,119370.0,119360.0,0.77452]
[1754868910327,0.60211439,119370.0,119360.0,0.77152]
[1754868910720,0.60211439,119370.0,119360.0,0.77052]
[1754868911220,0.60211439,119370.0,119360.0,0.83858]
[1754868911428,0.60211439,119370.0,119360.0,0.90108]
[1754868912224,0.3787152,119360.0,119350.0,0.3608]
[1754868912421,0.3787152,119360.0,119340.0,0.61308]
[1754868912422,0.3787222,119350.0,119340.0,0.61308]
[1754868912718,0.3787222,119350.0,119340.0,1.32078]
[1754868912719,0.60212839,119350.0,119340.0,1.32078]
[1754868912926,0.60212839,119350.0,119340.0,0.55058]
[1754868913225,0.60212839,119350.0,119340.0,1.32078]
[1754868913613,0.60212839,119350.0,119340.0,0.55058]
[1754868913814,0.3787292,119340.0,119330.0,0.6968617]
[1754868914014,0.60213539,119340.0,119330.0,1.4669017]
[1754868914218,0.60213539,119340.0,119330.0,1.5121017]
[1754868914619,0.60213539,119340.0,119330.0,1.06752]
[1754868914821,0.3787363,119330.0,119320.0,0.825864]
[1754868915021,0.60214249,119330.0,119320.0,1.82303249]
[1754868915421,0.63856929,119330.0,119320.0,1.06748]
[1754868915623,0.3787433,119320.0,119310.0,0.12172]
[1754868915928,0.82555568,119320.0,119310.0,0.10836]
[1754868916117,0.2029903,119310.0,119300.0,1.4672873]
[1754868916317,0.60215649,119310.0,119300.0,1.7672872]
[1754868916523,0.60215649,119310.0,119300.0,1.1064873]
[1754868916928,0.60215649,119310.0,119300.0,0.7704]
[1754868917133,0.3787573,119300.0,119290.0,0.61308]
[1754868917335,0.60216349,119300.0,119290.0,1.4673343]
[1754868918230,0.60216349,119300.0,119290.0,1.4693343]
[1754868918528,0.60216349,119300.0,119290.0,0.3628]
[1754868918728,0.62145007,119300.0,119290.0,0.3628]
[1754868920324,0.39804388,119300.0,119290.0,0.4486144]
[1754868920523,0.62145007,119300.0,119290.0,0.7460944]
[1754868920720,0.62145007,119300.0,119290.0,0.7440944]
[1754868920923,0.01928658,119300.0,119290.0,1.5725343]
[1754868921223,0.34030619,119310.0,119300.0,0.3812873]
[1754868921224,0.0001,119310.0,119300.0,0.3812873]
[1754868921422,0.0001,119310.0,119300.0,2.27437579]
[1754868921827,0.30730649,119310.0,119300.0,1.5705272]
[1754868922031,0.30730649,119310.0,119300.0,2.57481569]
[1754868922032,0.60225649,119310.0,119300.0,2.57481569]
[1754868922525,0.60225649,119310.0,119300.0,0.18978]
[1754868922732,0.2029973,119300.0,119290.0,1.6028244]
[1754868922925,0.60216349,119300.0,119290.0,2.12999279]
[1754868923733,0.1307273,119300.0,119290.0,2.12999279]
[1754868923922,0.35413349,119300.0,119290.0,2.13199279]
[1754868924125,0.1307273,119300.0,119290.0,2.13199279]
[1754868924929,0.44401704,119300.0,119290.0,2.13199279]
[1754868925126,0.69204704,119300.0,119290.0,2.00297839]
[1754868925326,0.69204704,119300.0,119290.0,1.13972]
[1754868925525,0.69204704,119300.0,119290.0,1.20778]
[1754868925832,0.69204704,119300.0,119290.0,1.2915944]
[1754868926035,0.69204704,119300.0,119290.0,1.3540944]
[1754868926533,0.71128141,119300.0,119290.0,0.77892]
[1754868926833,1.07208242,119300.0,119290.0,0.77892]
[1754868927035,1.07208242,119300.0,119290.0,0.002]
[1754868930033,1.37208242,119300.0,119290.0,0.002]
[1754868930230,0.3787714,119280.0,119270.0,0.3608]
[1754868930534,0.69216114,119280.0,119270.0,0.3608]
[1754868931122,0.0838284,119270.0,119260.0,1.3527107]
[1754868931330,0.69216814,119270.0,119260.0,1.10235909]
[1754868931526,0.69216814,119270.0,119260.0,1.87975909]
[1754868931928,0.69216814,119270.0,119260.0,1.2900907]
[1754868932122,0.69216814,119270.0,119260.0,1.3525907]
[1754868932635,0.69216814,119270.0,119260.0,0.42886]
[1754868932837,0.7113831,119270.0,119260.0,0.42886]
[1754868933140,0.7113831,119270.0,119260.0,0.5166954]
[1754868933330,0.69216814,119270.0,119260.0,0.5166954]
[1754868933531,0.7113817,119270.0,119260.0,0.6555954]
[1754868933732,0.7113817,119270.0,119260.0,0.7049154]
[1754868933934,0.69216814,119270.0,119260.0,0.7049154]
[1754868934135,0.71138171,119270.0,119260.0,0.008]
[1754868937335,0.71138171,119270.0,119240.0,0.07167]
[1754868937336,0.3729224,119250.0,119240.0,0.07167]
[1754868937533,0.70552571,119250.0,119240.0,0.24941]
[1754868937936,0.7421532,119250.0,119240.0,0.24941]
[1754868938128,0.7421532,119250.0,119240.0,0.3332595]
[1754868938342,0.7421532,119250.0,119240.0,0.96666799]
[1754868938641,0.7421532,119250.0,119240.0,0.96766799]
[1754868939235,0.1321624,119250.0,119240.0,1.79610789]
[1754868939537,0.0001,119250.0,119240.0,1.79610789]
[1754868939750,0.04822,119270.0,119260.0,0.3786854]
[1754868940037,0.48593193,119280.0,119270.0,0.0838284]
[1754868940227,0.71539327,119280.0,119270.0,0.96664689]
[1754868940429,0.04822,119280.0,119270.0,1.5679183]
[1754868940634,1.04087589,119300.0,119290.0,0.0838143]
[1754868940836,1.10835408,119300.0,119290.0,0.60583279]
[1754868941032,1.23453408,119300.0,119290.0,0.60583279]
[1754868941233,1.23453408,119300.0,119290.0,0.24941]
[1754868941535,0.3728943,119290.0,119280.0,1.5379177]
[1754868941839,0.70544223,119290.0,119280.0,2.06518609]
[1754868942041,0.70544223,119290.0,119280.0,2.11062609]
[1754868942738,0.71244223,119290.0,119280.0,2.11062609]
[1754868942941,0.71444223,119290.0,119280.0,1.45292839]
[1754868944241,0.71444223,119290.0,119280.0,0.79458]
[1754868944741,1.07524223,119290.0,119280.0,0.0001]
[1754868946439,0.71444223,119290.0,119280.0,0.0001]
[1754868946638,0.71444223,119290.0,119280.0,0.13128]
[1754868946833,0.71444223,119290.0,119280.0,0.0001]
[1754868948044,1.07524223,119290.0,119280.0,0.0001]
[1754868948232,1.86788223,119290.0,119280.0,0.0001]
[1754868950639,1.50708223,119290.0,119280.0,0.0001]
[1754868950940,0.02825819,119290.0,119280.0,1.4841899]
[1754868951243,0.02825819,119290.0,119280.0,1.26673979]
[1754868951549,0.02825819,119290.0,119280.0,1.79517979]
[1754868954455,0.52326704,119320.0,119300.0,0.2020373]
[1754868954648,0.04822,119310.0,119300.0,1.3550877]
[1754868954844,0.04822,119310.0,119300.0,2.6051277]
[1754868955147,0.52326384,119320.0,119310.0,0.3786503]
[1754868955148,0.71740946,119320.0,119310.0,0.3786503]
[1754868955344,0.71740946,119320.0,119310.0,0.95861879]
[1754868955542,0.71740946,119320.0,119310.0,1.48705879]
[1754868955743,0.71740946,119320.0,119310.0,1.44161879]
[1754868956142,0.71740946,119320.0,119310.0,1.01714879]
[1754868956346,0.3728803,119310.0,119300.0,0.9633373]
[1754868956546,0.3728803,119310.0,119300.0,1.93513839]
[1754868956547,0.68617004,119310.0,119300.0,1.93513839]
[1754868956743,0.68617004,119310.0,119300.0,1.12737839]
[1754868956949,0.68617004,119310.0,119300.0,1.21118569]
[1754868957151,0.68617004,119310.0,119300.0,1.12737839]
[1754868957349,0.68617004,119310.0,119300.0,1.21118569]
[1754868957550,0.68717004,119310.0,119300.0,1.12737839]
[1754868957852,0.68717004,119310.0,119300.0,0.0001]
[1754868958347,0.68917004,119310.0,119300.0,0.0001]
[1754868959251,0.68917004,119310.0,119300.0,1.31613569]